Workbook

Sheet Deliverables Summary
A1: Назва организації/Organisation name: | C1: НАЗВА/NAME
A2: Загальний бюджет проекту: | C2: =A9+A15+A21+A27 -> 0
A3: Загальні терміни проекту: | C3: =C9+C15+C21+C27 -> 0
A4: Деталі/Details:
A5: Результат №1/Deliverable #1
A6: Проведена перша стадія проекту - Фаза Дослідження (Discovery Phase) - та артефакти, що засвідчують її успішне завершення/Completion of the first project stage — Discovery Phase — and delivery of the artifacts confirming its successful completion.
A8: Бюджет/Budget | C8: Строк надання послуг (календарних днів)/Terms of providing services (calendar days) /
A9: ='Deliverable 1'!B4 -> 0 | C9: ='Deliverable 1'!B3 -> 0
A11: Результат №1/Deliverable #2
A12: Погоджений ФПСУ 2 та рецепіентами працюючий прототип системи пошуку, що буде виконувати базові пошукові функції з відкритих джерел та зберігати результати у базу даних/An agreed working prototype of the search system (approved by PFRU and the recipients), capable of performing basic search functions from open sources and storing the results in a database.
A14: Бюджет/Budget | C14: Строк надання послуг (календарних днів)/Terms of providing services (calendar days) /
A15: ='Deliverable 2'!B4 -> 0 | C15: ='Deliverable 2'!B3 -> 0
A17: Результат №1/Deliverable #3
A18: Погоджена ФПСУ 2 та рецепіентами система пошуку з розширеними можливостями запитів, доступом до нових типів даних та базовими механізмами безпеки/An agreed search system (approved by PFRU and the recipients), with extended query capabilities, access to new data types, and basic security mechanisms.
A20: Бюджет/Budget | C20: Строк надання послуг (календарних днів)/Terms of providing services (calendar days) /
A21: ='Deliverable 3'!B4 -> 0 | C21: ='Deliverable 3'!B3 -> 0
A23: Результат №1/Deliverable #4
A24: Погоджена ФПСУ 2 та рецепіентами система пошуку, готова до експлуатації з повним функціоналом та узгодженими робочими процесами/An agreed search system (approved by PFRU and the recipients), ready for operation with full functionality and aligned workflows.
A26: Бюджет/Budget | C26: Строк надання послуг (календарних днів)/Terms of providing services (calendar days) /
A27: ='Deliverable 4'!B4 -> 0 | C27: ='Deliverable 4'!B3 -> 0

Sheet Team Roster
A1: №/# | B1: Загальна інформація/General data
B2: ПІБ/Name | C2: Робоча спеціалізація/ Job Specialization | D2: Посилання на резюме/Resume link | E2: Компенсація на день/Daily rate | F2: Залучення, дні/Engagement,days | G2: Бюджет/Budget
A3: 1 | B3: Тест Тестович Тестов 1 | D3: посилання/link | G3: =E3*F3 -> 0
A4: 2 | B4: Тест Тестович Тестов 2 | D4: посилання/link | G4: =E4*F4 -> 0
A5: 3 | B5: Тест Тестович Тестов 3 | D5: посилання/link | G5: 0
A6: 4 | B6: Тест Тестович Тестов 4 | D6: посилання/link | G6: 0
A7: 5 | B7: Тест Тестович Тестов 5 | D7: посилання/link | G7: 0
A8: 6 | B8: Тест Тестович Тестов 6 | D8: посилання/link | G8: 0
A9: 7 | B9: Тест Тестович Тестов 7 | D9: посилання/link | G9: 0
A10: СУМА/TOTAL: | G10: =SUM(G3:G9) -> 0

Sheet Deliverable 1 (ПРИКЛАД)
A1: Загальна інформація вендора/Vendor's general info
A2: Назва організації/Organization name: | B2: НАЗВА/NAME
A3: Тривалість, днів/Duration, days | B3: =SUM(D26+D33+D40)/8 -> 28
A4: Бюджет Результату №1/Budget Deliverable #1 | B4: =D14 -> 165600
A5: Вартість роботи на день, грн/Cost per day,hrn | B5: =B4/B3 -> 5914.3
A6: Розрахунок вартості Результату 1 в цілому/General deliverable 1 cost calculation | E6: Розрахунок вартості Результату 1 по типам робіт/General deliverable 1 cost per work type
A7: Склад команди/Team Roster | B7: Годинна ставка, грн/Hourly Rate, hrn | C7: Сумарна оцінка трудовитрат, години/ LoE summary, hrs | D7: Сумарна оцінка трудовитрат, гривні/ LoE summary, hrn | E7: Тип роботи/Work type | N7: Загальна кількість годин/Overall hours spent | T7: Загальна Вартість/Overall Cost
A8: Архітектор Системи/System Architect | B8: 1400 | C8: =D19+D25+D30 -> 20 | D8: =E19+E25+E30 -> 28000 | E8: Загальний звіт про результати фази дослідження | N8: =D26 -> 72 | T8: =E26 -> 80800
A9: Технічний інженер 1/Tech.Engineer 1 | B9: 1000 | C9: =D22+D28 -> 18 | D9: =E22+E28 -> 18000 | E9: Специфікація вимог у ексель форматі | N9: =D33 -> 76 | T9: =E33 -> 84800
A10: Технічний інженер 2/Tech.Engineer 2 | B10: 1000 | C10: =D23+D29 -> 22 | D10: =E23+E29 -> 22000 | E10: Тип робіт 3 | N10: за аналогією | T10: за аналогією
A11: Менеджер проекту/Project manager | B11: 1200 | C11: =D24+D32 -> 32 | D11: =E24+E32 -> 38400 | E11: Тип робіт 4 | N11: за аналогією | T11: за аналогією
A12: Тестувальник/QA Engineer | B12: 800 | C12: =D20 -> 8 | D12: =E20 -> 6400 | E12: Тип робіт 5 | N12: за аналогією | T12: за аналогією
A13: Бізнес аналітик/BA | B13: 1100 | C13: =D21+D31 -> 48 | D13: =E21+E31 -> 52800 | E13: Тип робіт 6 | N13: за аналогією | T13: за аналогією
A14: СУМА/TOTAL: | C14: =SUM(C8:C13) -> 148 | D14: =SUM(D8:D13) -> 165600 | E14: СУМА/TOTAL: | N14: =SUM(N8:N13) -> 148 | T14: =SUM(T8:T13) -> 165600
A16: Визначення обсягу робіт для Результату №1/Deliverable 1 Scoping | F16: Діаграма Ґанта для визначення строків виконання кінцевих результатів/Deliverable timeline Gant chart
A17: Робоче завдання Результату№1 з ToR/Deliverable 1 work item from ToR | B17: Запропоновані роботи вендора, базуючисть на запиті ToR/Vendor's proposal work based on ToR request | C17: Відповідальний за виконання/ Accountable for delivery | D17: Оцінка трудовитрат в годинах/LoE in hrs | E17: Оцінка трудовитрат в грн/LoE in hrn | F17: Week 1 | M17: Week 2 | T17: Week 3 | AA17: Week 4
A18: Загальний звіт про результати фази дослідження/General report on the results of the Discovery Phase
B19: Проведення дослідження та надання матеріалів для звіту | C19: Архітектор Системи | D19: 8 | E19: =D19*B8 -> 11200
B20: Проведення дослідження та надання матеріалів для звіту | C20: Тестувальник | D20: 8 | E20: =D20*B12 -> 6400
B21: Проведення дослідження та надання матеріалів для звіту | C21: Бізнес аналітик | D21: 24 | E21: =D21*B13 -> 26400
B22: Проведення дослідження та надання матеріалів для звіту | C22: Технічний інженер 1 | D22: 6 | E22: =D22*B9 -> 6000
B23: Проведення дослідження та надання матеріалів для звіту | C23: Технічний інженер 2 | D23: 6 | E23: =D23*B10 -> 6000
B24: Координація роботи та складання звіту | C24: Менеджер проекту | D24: 16 | E24: =D24*B11 -> 19200
B25: Верифікація звіту та внесення правок | C25: Архітектор Системи | D25: 4 | E25: =D25*B8 -> 5600
A26: СУМА/TOTAL: | D26: =SUM(D19:D25) -> 72 | E26: =SUM(E19:E25) -> 80800
A27: Specification of requirements in Excel format/Специфікація вимог у ексель форматі
B28: Тип робіт 1 | C28: Технічний інженер 1 | D28: 12 | E28: =D28*B9 -> 12000
B29: Тип робіт 2 | C29: Технічний інженер 2 | D29: 16 | E29: =D29*B10 -> 16000
B30: Тип робіт 3 | C30: Архітектор Системи | D30: 8 | E30: =D30*B8 -> 11200
B31: Тип робіт 4 | C31: Бізнес аналітик | D31: 24 | E31: =D31*B13 -> 26400
B32: Тип робіт 5 | C32: Менеджер проекту | D32: 16 | E32: =D32*B11 -> 19200
A33: СУМА/TOTAL: | D33: =SUM(D28:D32) -> 76 | E33: =SUM(E28:E32) -> 84800
A34: Deliverable 1 work type 1/Назва результата роботи 1
B35: Тип робіт 1 | C35: Технічний інженер 1 | D35: 12 | E35: =D35*B9 -> 12000
B36: Тип робіт 2 | C36: Технічний інженер 2 | D36: 16 | E36: =D36*B10 -> 16000
B37: Тип робіт 3 | C37: Архітектор Системи | D37: 8 | E37: =D37*B8 -> 11200
B38: Тип робіт 4 | C38: Бізнес аналітик | D38: 24 | E38: =D38*B13 -> 26400
B39: Тип робіт 5 | C39: Менеджер проекту | D39: 16 | E39: =D39*B11 -> 19200
A40: СУМА/TOTAL: | D40: =SUM(D35:D39) -> 76 | E40: =SUM(E35:E39) -> 84800

Sheet Deliverable 1
A1: Загальна інформація
A2: Назва організації/Organization name | B2: НАЗВА/NAME
A3: Тривалість, днів/Duration, days | B3: =SUM(D25+D32+D39)/8 -> 0
A4: Бюджет Результату №1/Budget Deliverable #1 | B4: =D14 -> 0
A5: Вартість роботи на день, грн/Cost per day | B5: =B4/B3 -> 
A6: Розрахунок вартості Результату №2 в цілому/General deliverable #2 cost calculation | E6: Розрахунок вартості Результату №2 по типам робіт/General deliverable #2 cost per work type
A7: Склад команди/Team Roster | B7: Годинна ставка, грн/Hourly Rate, hrn | C7: Сумарна оцінка трудовитрат, години/ LoE summary, hrs | D7: Сумарна оцінка трудовитрат, гривні/ LoE summary, hrn | E7: Тип роботи/Work type | N7: Загальна кількість годин/Overall hours spent | T7: Загальна Вартість/Overall Cost
A8: Консультант 1 | C8: =D19+D26+D34 -> 0 | D8: =E19+E27+E34 -> 0 | E8: Тип робіт 1 | N8: =D25 -> 0 | T8: =E25 -> 0
A9: Консультант 2 | C9: =D20+D28+D35 -> 0 | D9: =E20+E28+E35 -> 0 | E9: Тип робіт 2 | N9: =D32 -> 0 | T9: =E32 -> 0
A10: Консультант 3 | C10: =D21+D29+D36 -> 0 | D10: =E21+E29+E36 -> 0 | E10: Тип робіт 3 | N10: =D39 -> 0 | T10: =E39 -> 0
A11: Консультант 4 | C11: =D22+D30+D37 -> 0 | D11: =E22+E30+E37 -> 0 | E11: Тип робіт 4 | N11: за аналогією | T11: за аналогією
A12: Консультант 5 | C12: =D23+D31+D38 -> 0 | D12: =E23+E31+E38 -> 0 | E12: Тип робіт 5 | N12: за аналогією | T12: за аналогією
A13: Консультант 6 | C13: =D24 -> 0 | D13: =E24 -> 0 | E13: Тип робіт 6 | N13: за аналогією | T13: за аналогією
A14: СУМА/TOTAL: | C14: =SUM(C8:C13) -> 0 | D14: =SUM(D8:D13) -> 0 | E14: СУМА/TOTAL: | N14: =SUM(N8:N13) -> 0 | T14: =SUM(T8:T13) -> 0
A16: Визначення обсягу робіт для Результату №2/Deliverable #2 scoping | F16: Діаграма Ґанта для визначення строків виконання кінцевих результатів/Deliverable timeline Gant chart
A17: Робоче завдання Результату №2 з ToR/deliverable #2 work item from ToR | B17: Запропоновані роботи вендора, базуючисть на запиті ToR/Vendor's proposal work based on ToR request | C17: Відповідальний за виконання/ Accountable for delivery | D17: Оцінка трудовитрат в годинах/LoE in hrs | E17: Оцінка трудовитрат в грн/LoE in hrn | F17: Week 1 | M17: Week 2 | T17: Week 3 | AA17: Week 4 | AH17: Week 5 | AO17: Week 6 | AV17: Week 7 | BC17: Week 8
A18: Типи робіт Результату №2/Deliverable #2 work type
B19: Тип робіт 1 | C19: Консультант 1 | E19: =D19*B8 -> 0
B20: Тип робіт 2 | C20: Консультант 2 | E20: =D20*B9 -> 0
B21: Тип робіт 3 | C21: Консультант 3 | E21: 0
B22: Тип робіт 4 | C22: Консультант 4 | E22: 0
B23: Тип робіт 5 | C23: Консультант 5 | E23: 0
B24: Тип робіт 6 | C24: Консультант 6 | E24: 0
A25: СУМА/TOTAL: | D25: =SUM(D19:D24) -> 0 | E25: =SUM(E19:E24) -> 0
A26: Типи робіт Результату №2/Deliverable #2 work type
B27: Тип робіт 1 | C27: Консультант 1 | E27: =D27*B8 -> 0
B28: Тип робіт 2 | C28: Консультант 2 | E28: =D28*B9 -> 0
B29: Тип робіт 3 | C29: Консультант 3 | E29: 0
B30: Тип робіт 4 | C30: Консультант 4 | E30: 0
B31: Тип робіт 5 | C31: Консультант 5 | E31: 0
A32: СУМА/TOTAL: | D32: =SUM(D27:D31) -> 0 | E32: =SUM(E27:E31) -> 0
A33: Типи робіт Результату №2/Deliverable #2 work type
B34: Тип робіт 1 | C34: Консультант 1 | E34: =D34*B8 -> 0
B35: Тип робіт 2 | C35: Консультант 2 | E35: =D35*B9 -> 0
B36: Тип робіт 3 | C36: Консультант 3 | E36: 0
B37: Тип робіт 4 | C37: Консультант 4 | E37: 0
B38: Тип робіт 5 | C38: Консультант 5 | E38: 0
A39: СУМА/TOTAL: | D39: =SUM(D34:D38) -> 0 | E39: =SUM(E34:E38) -> 0

Sheet Deliverable 2
A1: Загальна інформація
A2: Назва організації/Organization name | B2: НАЗВА/NAME
A3: Тривалість, днів/Duration, days | B3: =SUM(D25+D32+D39)/8 -> 0
A4: Бюджет Результату №2/Budget Deliverable #2 | B4: =D14 -> 0
A5: Вартість роботи на день, грн/Cost per day | B5: =B4/B3 -> 
A6: Розрахунок вартості Результату №2 в цілому/General deliverable #2 cost calculation | E6: Розрахунок вартості Результату №2 по типам робіт/General deliverable #2 cost per work type
A7: Склад команди/Team Roster | B7: Годинна ставка, грн/Hourly Rate, hrn | C7: Сумарна оцінка трудовитрат, години/ LoE summary, hrs | D7: Сумарна оцінка трудовитрат, гривні/ LoE summary, hrn | E7: Тип роботи/Work type | N7: Загальна кількість годин/Overall hours spent | T7: Загальна Вартість/Overall Cost
A8: Консультант 1 | C8: =D19+D26+D34 -> 0 | D8: =E19+E27+E34 -> 0 | E8: Тип робіт 1 | N8: =D25 -> 0 | T8: =E25 -> 0
A9: Консультант 2 | C9: =D20+D28+D35 -> 0 | D9: =E20+E28+E35 -> 0 | E9: Тип робіт 2 | N9: =D32 -> 0 | T9: =E32 -> 0
A10: Консультант 3 | C10: =D21+D29+D36 -> 0 | D10: =E21+E29+E36 -> 0 | E10: Тип робіт 3 | N10: =D39 -> 0 | T10: =E39 -> 0
A11: Консультант 4 | C11: =D22+D30+D37 -> 0 | D11: =E22+E30+E37 -> 0 | E11: Тип робіт 4 | N11: за аналогією | T11: за аналогією
A12: Консультант 5 | C12: =D23+D31+D38 -> 0 | D12: =E23+E31+E38 -> 0 | E12: Тип робіт 5 | N12: за аналогією | T12: за аналогією
A13: Консультант 6 | C13: =D24 -> 0 | D13: =E24 -> 0 | E13: Тип робіт 6 | N13: за аналогією | T13: за аналогією
A14: СУМА/TOTAL: | C14: =SUM(C8:C13) -> 0 | D14: =SUM(D8:D13) -> 0 | E14: СУМА/TOTAL: | N14: =SUM(N8:N13) -> 0 | T14: =SUM(T8:T13) -> 0
A16: Визначення обсягу робіт для Результату №2/Deliverable #2 scoping | F16: Діаграма Ґанта для визначення строків виконання кінцевих результатів/Deliverable timeline Gant chart
A17: Робоче завдання Результату №2 з ToR/deliverable #2 work item from ToR | B17: Запропоновані роботи вендора, базуючисть на запиті ToR/Vendor's proposal work based on ToR request | C17: Відповідальний за виконання/ Accountable for delivery | D17: Оцінка трудовитрат в годинах/LoE in hrs | E17: Оцінка трудовитрат в грн/LoE in hrn | F17: Week 1 | M17: Week 2 | T17: Week 3 | AA17: Week 4 | AH17: Week 5 | AO17: Week 6 | AV17: Week 7 | BC17: Week 8
A18: Типи робіт Результату №2/Deliverable #2 work type
B19: Тип робіт 1 | C19: Консультант 1 | E19: =D19*B8 -> 0
B20: Тип робіт 2 | C20: Консультант 2 | E20: =D20*B9 -> 0
B21: Тип робіт 3 | C21: Консультант 3 | E21: 0
B22: Тип робіт 4 | C22: Консультант 4 | E22: 0
B23: Тип робіт 5 | C23: Консультант 5 | E23: 0
B24: Тип робіт 6 | C24: Консультант 6 | E24: 0
A25: СУМА/TOTAL: | D25: =SUM(D19:D24) -> 0 | E25: =SUM(E19:E24) -> 0
A26: Типи робіт Результату №2/Deliverable #2 work type
B27: Тип робіт 1 | C27: Консультант 1 | E27: =D27*B8 -> 0
B28: Тип робіт 2 | C28: Консультант 2 | E28: =D28*B9 -> 0
B29: Тип робіт 3 | C29: Консультант 3 | E29: 0
B30: Тип робіт 4 | C30: Консультант 4 | E30: 0
B31: Тип робіт 5 | C31: Консультант 5 | E31: 0
A32: СУМА/TOTAL: | D32: =SUM(D27:D31) -> 0 | E32: =SUM(E27:E31) -> 0
A33: Типи робіт Результату №2/Deliverable #2 work type
B34: Тип робіт 1 | C34: Консультант 1 | E34: =D34*B8 -> 0
B35: Тип робіт 2 | C35: Консультант 2 | E35: =D35*B9 -> 0
B36: Тип робіт 3 | C36: Консультант 3 | E36: 0
B37: Тип робіт 4 | C37: Консультант 4 | E37: 0
B38: Тип робіт 5 | C38: Консультант 5 | E38: 0
A39: СУМА/TOTAL: | D39: =SUM(D34:D38) -> 0 | E39: =SUM(E34:E38) -> 0

Sheet Deliverable 3
A1: Загальна інформація
A2: Назва організації/Organization name | B2: НАЗВА/NAME
A3: Тривалість, днів/Duration, days | B3: =SUM(D25+D32+D39)/8 -> 0
A4: Бюджет Результату №3/Budget Deliverable #3 | B4: =D14 -> 0
A5: Вартість роботи на день, грн/Cost per day | B5: =B4/B3 -> 
A6: Розрахунок вартості Результату №2 в цілому/General deliverable #2 cost calculation | E6: Розрахунок вартості Результату №2 по типам робіт/General deliverable #2 cost per work type
A7: Склад команди/Team Roster | B7: Годинна ставка, грн/Hourly Rate, hrn | C7: Сумарна оцінка трудовитрат, години/ LoE summary, hrs | D7: Сумарна оцінка трудовитрат, гривні/ LoE summary, hrn | E7: Тип роботи/Work type | N7: Загальна кількість годин/Overall hours spent | T7: Загальна Вартість/Overall Cost
A8: Консультант 1 | C8: =D19+D26+D34 -> 0 | D8: =E19+E27+E34 -> 0 | E8: Тип робіт 1 | N8: =D25 -> 0 | T8: =E25 -> 0
A9: Консультант 2 | C9: =D20+D28+D35 -> 0 | D9: =E20+E28+E35 -> 0 | E9: Тип робіт 2 | N9: =D32 -> 0 | T9: =E32 -> 0
A10: Консультант 3 | C10: =D21+D29+D36 -> 0 | D10: =E21+E29+E36 -> 0 | E10: Тип робіт 3 | N10: =D39 -> 0 | T10: =E39 -> 0
A11: Консультант 4 | C11: =D22+D30+D37 -> 0 | D11: =E22+E30+E37 -> 0 | E11: Тип робіт 4 | N11: за аналогією | T11: за аналогією
A12: Консультант 5 | C12: =D23+D31+D38 -> 0 | D12: =E23+E31+E38 -> 0 | E12: Тип робіт 5 | N12: за аналогією | T12: за аналогією
A13: Консультант 6 | C13: =D24 -> 0 | D13: =E24 -> 0 | E13: Тип робіт 6 | N13: за аналогією | T13: за аналогією
A14: СУМА/TOTAL: | C14: =SUM(C8:C13) -> 0 | D14: =SUM(D8:D13) -> 0 | E14: СУМА/TOTAL: | N14: =SUM(N8:N13) -> 0 | T14: =SUM(T8:T13) -> 0
A16: Визначення обсягу робіт для Результату №2/Deliverable #2 scoping | F16: Діаграма Ґанта для визначення строків виконання кінцевих результатів/Deliverable timeline Gant chart
A17: Робоче завдання Результату №2 з ToR/deliverable #2 work item from ToR | B17: Запропоновані роботи вендора, базуючисть на запиті ToR/Vendor's proposal work based on ToR request | C17: Відповідальний за виконання/ Accountable for delivery | D17: Оцінка трудовитрат в годинах/LoE in hrs | E17: Оцінка трудовитрат в грн/LoE in hrn | F17: Week 1 | M17: Week 2 | T17: Week 3 | AA17: Week 4 | AH17: Week 5 | AO17: Week 6 | AV17: Week 7 | BC17: Week 8
A18: Типи робіт Результату №2/Deliverable #2 work type
B19: Тип робіт 1 | C19: Консультант 1 | E19: =D19*B8 -> 0
B20: Тип робіт 2 | C20: Консультант 2 | E20: =D20*B9 -> 0
B21: Тип робіт 3 | C21: Консультант 3 | E21: 0
B22: Тип робіт 4 | C22: Консультант 4 | E22: 0
B23: Тип робіт 5 | C23: Консультант 5 | E23: =D23*B12 -> 0
B24: Тип робіт 6 | C24: Консультант 6 | E24: =D24*B13 -> 0
A25: СУМА/TOTAL: | D25: =SUM(D19:D24) -> 0 | E25: =SUM(E19:E24) -> 0
A26: Типи робіт Результату №2/Deliverable #2 work type
B27: Тип робіт 1 | C27: Консультант 1 | E27: =D27*B8 -> 0
B28: Тип робіт 2 | C28: Консультант 2 | E28: =D28*B9 -> 0
B29: Тип робіт 3 | C29: Консультант 3 | E29: 0
B30: Тип робіт 4 | C30: Консультант 4 | E30: 0
B31: Тип робіт 5 | C31: Консультант 5 | E31: =D31*B12 -> 0
A32: СУМА/TOTAL: | D32: =SUM(D27:D31) -> 0 | E32: =SUM(E27:E31) -> 0
A33: Типи робіт Результату №2/Deliverable #2 work type
B34: Тип робіт 1 | C34: Консультант 1 | E34: =D34*B8 -> 0
B35: Тип робіт 2 | C35: Консультант 2 | E35: =D35*B9 -> 0
B36: Тип робіт 3 | C36: Консультант 3 | E36: 0
B37: Тип робіт 4 | C37: Консультант 4 | E37: 0
B38: Тип робіт 5 | C38: Консультант 5 | E38: =D38*B12 -> 0
A39: СУМА/TOTAL: | D39: =SUM(D34:D38) -> 0 | E39: =SUM(E34:E38) -> 0

Sheet Deliverable 4
A1: Загальна інформація
A2: Назва організації/Organization name | B2: НАЗВА/NAME
A3: Тривалість, днів/Duration, days | B3: =SUM(D25+D32+D39)/8 -> 0
A4: Бюджет Результату №4/Budget Deliverable #4 | B4: =D14 -> 0
A5: Вартість роботи на день, грн/Cost per day | B5: =B4/B3 -> 
A6: Розрахунок вартості Результату №2 в цілому/General deliverable #2 cost calculation | E6: Розрахунок вартості Результату №2 по типам робіт/General deliverable #2 cost per work type
A7: Склад команди/Team Roster | B7: Годинна ставка, грн/Hourly Rate, hrn | C7: Сумарна оцінка трудовитрат, години/ LoE summary, hrs | D7: Сумарна оцінка трудовитрат, гривні/ LoE summary, hrn | E7: Тип роботи/Work type | N7: Загальна кількість годин/Overall hours spent | T7: Загальна Вартість/Overall Cost
A8: Консультант 1 | C8: =D19+D26+D34 -> 0 | D8: =E19+E27+E34 -> 0 | E8: Тип робіт 1 | N8: =D25 -> 0 | T8: =E25 -> 0
A9: Консультант 2 | C9: =D20+D28+D35 -> 0 | D9: =E20+E28+E35 -> 0 | E9: Тип робіт 2 | N9: =D32 -> 0 | T9: =E32 -> 0
A10: Консультант 3 | C10: =D21+D29+D36 -> 0 | D10: =E21+E29+E36 -> 0 | E10: Тип робіт 3 | N10: =D39 -> 0 | T10: =E39 -> 0
A11: Консультант 4 | C11: =D22+D30+D37 -> 0 | D11: =E22+E30+E37 -> 0 | E11: Тип робіт 4 | N11: за аналогією | T11: за аналогією
A12: Консультант 5 | C12: =D23+D31+D38 -> 0 | D12: =E23+E31+E38 -> 0 | E12: Тип робіт 5 | N12: за аналогією | T12: за аналогією
A13: Консультант 6 | C13: =D24 -> 0 | D13: =E24 -> 0 | E13: Тип робіт 6 | N13: за аналогією | T13: за аналогією
A14: СУМА/TOTAL: | C14: =SUM(C8:C13) -> 0 | D14: =SUM(D8:D13) -> 0 | E14: СУМА/TOTAL: | N14: =SUM(N8:N13) -> 0 | T14: =SUM(T8:T13) -> 0
A16: Визначення обсягу робіт для Результату №2/Deliverable #2 scoping | F16: Діаграма Ґанта для визначення строків виконання кінцевих результатів/Deliverable timeline Gant chart
A17: Робоче завдання Результату №2 з ToR/deliverable #2 work item from ToR | B17: Запропоновані роботи вендора, базуючисть на запиті ToR/Vendor's proposal work based on ToR request | C17: Відповідальний за виконання/ Accountable for delivery | D17: Оцінка трудовитрат в годинах/LoE in hrs | E17: Оцінка трудовитрат в грн/LoE in hrn | F17: Week 1 | M17: Week 2 | T17: Week 3 | AA17: Week 4 | AH17: Week 5 | AO17: Week 6 | AV17: Week 7 | BC17: Week 8
A18: Типи робіт Результату №2/Deliverable #2 work type
B19: Тип робіт 1 | C19: Консультант 1 | E19: =D19*B8 -> 0
B20: Тип робіт 2 | C20: Консультант 2 | E20: =D20*B9 -> 0
B21: Тип робіт 3 | C21: Консультант 3 | E21: 0
B22: Тип робіт 4 | C22: Консультант 4 | E22: 0
B23: Тип робіт 5 | C23: Консультант 5 | E23: 0
B24: Тип робіт 6 | C24: Консультант 6 | E24: 0
A25: СУМА/TOTAL: | D25: =SUM(D19:D24) -> 0 | E25: =SUM(E19:E24) -> 0
A26: Типи робіт Результату №2/Deliverable #2 work type
B27: Тип робіт 1 | C27: Консультант 1 | E27: =D27*B8 -> 0
B28: Тип робіт 2 | C28: Консультант 2 | E28: =D28*B9 -> 0
B29: Тип робіт 3 | C29: Консультант 3 | E29: 0
B30: Тип робіт 4 | C30: Консультант 4 | E30: 0
B31: Тип робіт 5 | C31: Консультант 5 | E31: 0
A32: СУМА/TOTAL: | D32: =SUM(D27:D31) -> 0 | E32: =SUM(E27:E31) -> 0
A33: Типи робіт Результату №2/Deliverable #2 work type
B34: Тип робіт 1 | C34: Консультант 1 | E34: =D34*B8 -> 0
B35: Тип робіт 2 | C35: Консультант 2 | E35: =D35*B9 -> 0
B36: Тип робіт 3 | C36: Консультант 3 | E36: 0
B37: Тип робіт 4 | C37: Консультант 4 | E37: 0
B38: Тип робіт 5 | C38: Консультант 5 | E38: 0
A39: СУМА/TOTAL: | D39: =SUM(D34:D38) -> 0 | E39: =SUM(E34:E38) -> 0
